[Event "AICF Women GM 2018"]
[Site "Mumbai"]
[Date "2018.06.17"]
[Round "8"]
[White "Tokhirjonova, Gulrukhbegim"]
[Black "Monnisha G K"]
[Result "0-1"]
[ECO "C58"]
[WhiteElo "2379"]
[BlackElo "2295"]
[Annotator "ChessBase"]
[PlyCount "156"]
[EventDate "2018.??.??"]
[EventType "tourn"]
[EventCountry "IND"]
[SourceTitle "playchess.com"]
[Source "ChessBase"]
[SourceQuality "1"]
[TimeControl "40/5400+30:1800+30"]

1. e4 {[%emt 0:00:53]} e5 {[%emt 0:00:10]} 2. Nf3 {[%emt 0:00:07]} Nc6 {[%emt 0:00:06]} 3. Bc4 {[%emt 0:00:10]} Nf6 {[%emt 0:00:07]} 4. Ng5 {[%emt 0:00:11]} d5 {[%emt 0:00:06]} 5. exd5 {[%emt 0:00:08]} Na5 {[%emt 0:00:05]} 6. Bb5+ {[%emt 0:00:16]} c6 {[%emt 0:00:05]} 7. dxc6 {[%emt 0:00:05]} bxc6 {[%emt 0:00:04]} 8. Bd3 {[%emt 0:00:06]} Nd5 {[%emt 0:00:10]} 9. h4 {[%emt 0:01:00]} Be7 {[%emt 0:00:15]} 10. Qf3 {[%emt 0:00:34]} f5 {[%emt 0:07:18]} 11. Bxf5 {[%emt 0:07:04]} Rf8 {[%emt 0:00:57]} 12. Qh5+ {[%emt 0:00:18]} g6 {[%emt 0:00:07]} 13. Bxg6+ {[%emt 0:00:11]} hxg6 {[%emt 0:00:02]} 14. Qxg6+ {[%emt 0:00:08]} Kd7 {[%emt 0:00:05]} 15. d3 {[%emt 0:06:13]} Kc7 {[%emt 0:15:09]} 16. Bd2 {[%emt 0:05:10]} Nb7 {[%emt 0:01:59]} 17. Nc3 {[%emt 0:03:39]} Qd6 {[%emt 0:05:08]} 18. Qe4 {[%emt 0:05:56]} Nc5 {[%emt 0:04:08]} 19. Qe2 {[%emt 0:01:53]} Nf4 {[%emt 0:07:27]} 20. Bxf4 {[%emt 0:02:47]} Rxf4 {[%emt 0:00:35]} 21. g3 {[%emt 0:05:45]} Rb4 {[%emt 0:04:44]} 22. O-O-O {[%emt 0:01:45]} Rab8 {[%emt 0:28:31]} 23. Nf7 {[%emt 0:09:21]} Qf6 {[%emt 0:00:33]} 24. Qxe5+ {[%emt 0:00:46]} Qxe5 {[%emt 0:01:44]} 25. Nxe5 {[%emt 0:00:02]} Bf6 {[%emt 0:00:59]} 26. f4 {[%emt 0:01:55]} Rxb2 {[%emt 0:01:41]} 27. h5 {[%emt 0:02:44]} Bf5 {[%emt 0:03:09]} 28. Kd2 {[%emt 0:27:32]} Bxe5 {[%emt 0:05:26]} 29. fxe5 {[%emt 0:00:02]} Bxd3 {[%emt 0:01:17]} 30. Ke3 {[%emt 0:01:14]} Bxc2 {[%emt 0:00:52]} 31. Rd2 {[%emt 0:00:37]} Bh7 {[%emt 0:06:09]} 32. Rxb2 {[%emt 0:00:21]} Rxb2 {[%emt 0:00:02]} 33. Rf1 {[%emt 0:00:08]} Bg8 {[%emt 0:00:11]} 34. Rf8 {[%emt 0:04:12]} Be6 {[%emt 0:00:55]} 35. Kd4 {[%emt 0:04:34]} Rb4+ {[%emt 0:01:07]} 36. Ke3 {[%emt 0:00:01]} Rg4 {[%emt 0:01:03]} 37. Kf2 {[%emt 0:02:55]} Nd3+ {[%emt 0:00:59]} 38. Kg2 {[%emt 0:00:03]} Rg7 {[%emt 0:01:36]} 39. Rf6 {[%emt 0:01:01]} Kd7 {[%emt 0:01:16]} 40. h6 {[%emt 0:02:50]} Rh7 {[%emt 0:32:31]} 41. g4 {[%emt 0:30:16]} Nxe5 {[%emt 0:00:00]} 42. g5 {[%emt 0:00:00]} Rf7 {[%emt 0:00:00]} 43. Rf2 {[%emt 0:00:00]} Bd5+ {[%emt 0:00:00]} 44. Kg3 {[%emt 0:00:00]} Rxf2 45. Kxf2 {[%emt 0:00:00]} Nf7 {[%emt 0:00:00]} 46. h7 {[%emt 0:00:00]} Nh8 {[%emt 0:00:00]} 47. Ke3 {[%emt 0:00:00]} Kd6 {[%emt 0:00:00]} 48. Kf4 {[%emt 0:00:00]} Ke6 {[%emt 0:00:00]} 49. a3 {[%emt 0:00:00]} Bb3 {[%emt 0:00:00]} 50. Ne4 {[%emt 0:00:00]} Bc2 {[%emt 0:00:00]} 51. Nf6 {[%emt 0:00:00]} Nf7 {[%emt 0:00:00]} 52. Ke3 {[%emt 0:00:00]} Kd6 {[%emt 0:00:00]} 53. Kd4 {[%emt 0:00:00]} c5+ {[%emt 0:00:00]} 54. Kc4 {[%emt 0:00:00]} Nh8 {[%emt 0:00:00]} 55. Ne8+ {[%emt 0:00:00]} Kc6 {[%emt 0:00:00]} 56. Nf6 {[%emt 0:00:00]} Bf5 {[%emt 0:00:00]} 57. Kc3 {[%emt 0:00:00]} Kb5 {[%emt 0:00:00]} 58. Kb3 {[%emt 0:00:00]} c4+ {[%emt 0:00:00]} 59. Kc3 {[%emt 0:00:00]} Kc5 {[%emt 0:00:00]} 60. Ne8 {[%emt 0:00:00]} Bxh7 {[%emt 0:00:00]} 61. Nc7 {[%emt 0:00:00]} Bd3 {[%emt 0:00:00]} 62. Ne6+ {[%emt 0:00:00]} Kb5 {[%emt 0:00:00]} 63. Nf4 {[%emt 0:00:00]} Ka4 {[%emt 0:00:00]} 64. Kb2 {[%emt 0:01:34]} Ng6 {[%emt 0:00:00]} 65. Ne6 {[%emt 0:01:09]} Kb5 {[%emt 0:00:00]} 66. Kc3 {[%emt 0:01:31]} Ne5 {[%emt 0:00:00]} 67. Nf4 {[%emt 0:01:44]} Ka4 {[%emt 0:00:00]} 68. Kb2 {[%emt 0:00:16]} Bh7 {[%emt 0:02:12]} 69. Ne6 {[%emt 0:00:21]} Bg8 {[%emt 0:00:50]} 70. Nc5+ {[%emt 0:01:40]} Kb5 {[%emt 0:00:06]} 71. Ne4 {[%emt 0:00:05]} Bh7 {[%emt 0:01:18]} 72. Nf6 {[%emt 0:00:29]} Bg6 {[%emt 0:00:12]} 73. Nd5 {[%emt 0:00:50]} Kc5 {[%emt 0:00:06]} 74. Nc7 {[%emt 0:01:47]} Kd4 {[%emt 0:00:32]} 75. Nb5+ {[%emt 0:01:27]} Kd3 {[%emt 0:00:06]} 76. Nxa7 {[%emt 0:00:23]} c3+ {[%emt 0:00:04]} 77. Kc1 {[%emt 0:00:03]} Kc4 {[%emt 0:00:13]} 78. Nc8 {[%emt 0:00:38]} Kb3 {[%emt 0:00:08]} 0-1

[Event "AICF Women GM 2018"]
[Site "Mumbai"]
[Date "2018.06.17"]
[Round "8"]
[White "Vo, Thi Kim Phung"]
[Black "Srija, Seshadri"]
[Result "1/2-1/2"]
[ECO "D31"]
[WhiteElo "2376"]
[BlackElo "2207"]
[Annotator "ChessBase"]
[PlyCount "122"]
[EventDate "2018.??.??"]
[EventType "tourn"]
[EventCountry "IND"]
[SourceTitle "playchess.com"]
[Source "ChessBase"]
[SourceQuality "1"]
[TimeControl "40/5400+30:1800+30"]

1. d4 {[%emt 0:00:00]} d5 {[%emt 0:00:37]} 2. c4 {[%emt 0:00:17]} e6 {[%emt 0:00:06]} 3. Nc3 {[%emt 0:00:05]} c6 {[%emt 0:00:06]} 4. e4 {[%emt 0:00:09]} dxe4 {[%emt 0:00:08]} 5. Nxe4 {[%emt 0:00:06]} Bb4+ {[%emt 0:00:07]} 6. Nc3 {[%emt 0:00:11]} c5 {[%emt 0:02:50]} 7. a3 {[%emt 0:00:29]} Ba5 {[%emt 0:01:00]} 8. Nge2 {[%emt 0:01:07]} cxd4 {[%emt 0:08:29]} 9. Qxd4 {[%emt 0:00:15]} Qxd4 {[%emt 0:00:19]} 10. Nxd4 {[%emt 0:00:07]} Bxc3+ {[%emt 0:03:38]} 11. bxc3 {[%emt 0:00:39]} a6 {[%emt 0:00:17]} 12. Be2 {[%emt 0:04:48]} Ne7 {[%emt 0:02:44]} 13. Be3 {[%emt 0:05:52]} Nbc6 {[%emt 0:03:42]} 14. Nxc6 {[%emt 0:04:20]} Nxc6 {[%emt 0:00:21]} 15. Bc5 {[%emt 0:00:44]} Bd7 {[%emt 0:09:11]} 16. Rb1 {[%emt 0:03:25]} Nd8 {[%emt 0:02:19]} 17. O-O {[%emt 0:01:20]} Bc6 {[%emt 0:02:06]} 18. Rfe1 {[%emt 0:05:17]} Rc8 {[%emt 0:02:16]} 19. Bd6 {[%emt 0:00:54]} f6 {[%emt 0:03:36]} 20. c5 {[%emt 0:02:53]} Bd5 {[%emt 0:03:08]} 21. Rbd1 {[%emt 0:06:29]} Bb3 {[%emt 0:11:46]} 22. Rd2 {[%emt 0:01:40]} Nf7 {[%emt 0:16:30]} 23. c4 {[%emt 0:15:21]} Nxd6 {[%emt 0:06:48]} 24. cxd6 {[%emt 0:04:00]} Kd7 {[%emt 0:08:25]} 25. Rb2 {[%emt 0:13:27]} Bxc4 {[%emt 0:00:12]} 26. Bxc4 {[%emt 0:00:44]} Rxc4 {[%emt 0:00:02]} 27. Rxb7+ {[%emt 0:00:02]} Kxd6 {[%emt 0:00:39]} 28. Rb6+ {[%emt 0:00:20]} Rc6 {[%emt 0:02:51]} 29. Rxe6+ {[%emt 0:00:28]} Kxe6 {[%emt 0:00:02]} 30. Rxc6+ {[%emt 0:00:04]} Kf7 {[%emt 0:00:13]} 31. Rxa6 {[%emt 0:00:37]} Rb8 {[%emt 0:00:11]} 32. g3 {[%emt 0:00:27]} Rb3 {[%emt 0:00:34]} 33. Kg2 {[%emt 0:00:39]} h5 {[%emt 0:00:54]} 34. h4 {[%emt 0:02:48]} Kg6 {[%emt 0:00:17]} 35. Kf1 {[%emt 0:00:37]} Rb2 {[%emt 0:00:17]} 36. Ra7 {[%emt 0:01:37]} Kh6 {[%emt 0:00:28]} 37. Re7 {[%emt 0:01:35]} Ra2 {[%emt 0:01:25]} 38. Re3 {[%emt 0:00:36]} Kg6 {[%emt 0:01:24]} 39. Rf3 {[%emt 0:01:19]} Kf7 {[%emt 0:02:46]} 40. Ke1 {[%emt 0:00:46]} Ke6 {[%emt 0:30:18]} 41. Kd1 {[%emt 0:30:11]} g5 {[%emt 0:06:24]} 42. Kc1 {[%emt 0:01:53]} gxh4 {[%emt 0:00:00]} 43. gxh4 {[%emt 0:00:00]} Ke5 {[%emt 0:00:00]} 44. Kd1 {[%emt 0:00:00]} f5 {[%emt 0:00:00]} 45. Ke1 {[%emt 0:00:00]} Ke4 {[%emt 0:00:00]} 46. Re3+ {[%emt 0:00:00]} Kf4 {[%emt 0:00:00]} 47. Rg3 {[%emt 0:00:00]} Ke4 {[%emt 0:00:00]} 48. Kf1 {[%emt 0:00:00]} f4 {[%emt 0:00:00]} 49. Rb3 {[%emt 0:00:00]} Kf5 {[%emt 0:00:00]} 50. f3 {[%emt 0:00:00]} Ke5 {[%emt 0:00:00]} 51. Rd3 {[%emt 0:00:00]} Rb2 {[%emt 0:00:00]} 52. Ke1 {[%emt 0:00:00]} Ra2 {[%emt 0:00:00]} 53. Kd1 {[%emt 0:00:00]} Rh2 {[%emt 0:00:00]} 54. Kc1 {[%emt 0:00:00]} Rxh4 {[%emt 0:00:00]} 55. a4 {[%emt 0:00:00]} Rh1+ {[%emt 0:02:17]} 56. Kb2 {[%emt 0:00:00]} Rg1 {[%emt 0:00:44]} 57. Rd8 {[%emt 0:00:00]} Rg7 {[%emt 0:00:55]} 58. Rh8 {[%emt 0:00:00]} Kd4 {[%emt 0:00:24]} 59. Rxh5 {[%emt 0:02:01]} Ke3 {[%emt 0:00:01]} 60. a5 {[%emt 0:00:55]} Kxf3 {[%emt 0:00:17]} 61. Kc3 {[%emt 0:00:58]} Kg2 {[%emt 0:00:33]} 1/2-1/2

[Event "AICF Women GM 2018"]
[Site "Mumbai"]
[Date "2018.06.17"]
[Round "9"]
[White "Nakhbayeva, Guliskhan"]
[Black "Tomilova, Elena"]
[Result "1-0"]
[ECO "D25"]
[WhiteElo "2323"]
[BlackElo "2334"]
[Annotator "NA"]
[PlyCount "95"]
[EventDate "2018.??.??"]
[EventType "tourn"]
[EventCountry "IND"]
[SourceTitle "playchess.com"]
[Source "ChessBase"]
[SourceQuality "1"]
[TimeControl "40/5400+30:1800+30"]

1. d4 {[%emt 0:00:00]} d5 {[%emt 0:00:05]} 2. c4 {[%emt 0:00:00]} dxc4 {[%emt 0:00:05]} 3. Nf3 {[%emt 0:00:06]} Nf6 {[%emt 0:00:07]} 4. e3 {[%emt 0:00:10]} Bg4 {[%emt 0:00:10]} 5. Bxc4 {[%emt 0:00:46]} e6 {[%emt 0:00:05]} 6. Qb3 {[%emt 0:03:24]} Bxf3 {[%emt 0:00:17]} 7. gxf3 {[%emt 0:00:04]} Nbd7 {[%emt 0:00:10]} 8. Nc3 {[%emt 0:06:33]} Nb6 {[%emt 0:02:42]} 9. Be2 {[%emt 0:02:11] LiveBook: 27 Games} c6 {[%emt 0:05:36] D25: Queen's Gambit Accepted: 4 e3: sidelines and 4...Bg4} 10. Bd2 {[%emt 0:00:46]} Be7 {[%emt 0:01:09]} (10... g6 11. h4 h5 12. O-O-O Be7 13. Kb1 Qd7 14. Bc1 O-O-O 15. e4 Kb8 16. Bf4+ Ka8 17. Be3 {1-0 (38) Nisipeanu,L (2652)-Stevic,H (2605) Austria 2014}) 11. O-O-O $146 {[%emt 0:02:37]} ({Predecessor:} 11. Ne4 Qd5 12. Qc2 g6 13. Nc5 Rb8 14. b4 O-O 15. Bc3 Qd8 16. a3 Nbd7 17. Rd1 {0-1 (47) Skierus,A (1917)-Juknis,P (2161) Plateliai 2014}) 11... a5 {[%emt 0:04:22]} 12. a3 {[%emt 0:10:22]} O-O {[%emt 0:02:05]} 13. e4 {[%emt 0:02:05]} Qc7 {[%emt 0:04:31]} 14. Kb1 {[%emt 0:03:27]} Nbd7 {[%emt 0:09:05]} 15. Rc1 {[%emt 0:11:33]} Rfb8 {[%emt 0:15:47]} 16. e5 {[%emt 0:04:35]} Ne8 {[%emt 0:01:01]} 17. f4 {[%emt 0:00:45]} Qb6 {[%emt 0:05:28]} 18. Qa2 {[%emt 0:01:31]} Nc7 {[%emt 0:01:24]} 19. Be3 {[%emt 0:11:15]} Nd5 {[%emt 0:01:15]} 20. Nxd5 {[%emt 0:00:05]} cxd5 {[%emt 0:02:38]} 21. a4 {[%emt 0:02:55]} Rd8 {[%emt 0:05:38]} 22. f5 {[%emt 0:02:07]} exf5 {[%emt 0:06:33]} 23. Qxd5 {[%emt 0:00:13]} Nf6 {[%emt 0:00:25]} 24. Qf3 {[%emt 0:02:57]} Nd5 {[%emt 0:06:02]} 25. Qxf5 {[%emt 0:01:18]} g6 {[%emt 0:01:59]} (25... Qe6 $16 {keeps fighting.} 26. Qe4 Rac8) 26. Qd3 {[%emt 0:04:06]} Qe6 {[%emt 0:04:08]} 27. Qb3 {[%emt 0:03:04]} Rac8 {[%emt 0:05:09]} 28. Rxc8 {[%emt 0:01:26]} Rxc8 {[%emt 0:00:12]} 29. Rc1 {[%emt 0:00:40]} Rxc1+ {[%emt 0:02:23]} 30. Bxc1 {[%emt 0:00:14]} Qf5+ {[%emt 0:01:34]} (30... Nb4 $16 {was worth a try.} 31. Qxe6 fxe6) 31. Bd3 {[%emt 0:02:58]} Qf3 {[%emt 0:00:55]} 32. Bc4 {[%emt 0:01:30]} Qe4+ {[%emt 0:00:55]} 33. Qd3 {[%emt 0:00:15]} Qh1 {[%emt 0:00:24]} 34. Qb3 {[%emt 0:04:02]} Qe4+ {[%emt 0:04:16]} 35. Qd3 {[%emt 0:00:57]} Qh1 {[%emt 0:00:08]} 36. Bb3 {[%emt 0:05:35]} Nb4 {[%emt 0:02:56]} 37. Qe3 {[%emt 0:00:22]} Nd5 {[%emt 0:02:02]} 38. Qe2 {[%emt 0:02:22]} Nb4 $18 {[%emt 0:00:59]} (38... Kg7 {was necessary.} 39. Qc4 Bg5 40. Qxd5 Qxc1+ 41. Ka2 Qf4 42. Qxb7 Qxd4) 39. Qc4 {[%emt 0:04:20]} Qf3 {[%emt 0:01:08]} 40. Ka1 {[%emt 0:02:42]} Qxf2 {[%emt 0:32:03]} 41. e6 {[%emt 0:31:21]} f5 {[%emt 0:00:00]} 42. Qc8+ {[%emt 0:00:00]} Kg7 {[%emt 0:00:00]} 43. Qe8 {[%emt 0:00:00]} Qh4 {[%emt 0:00:00]} 44. Qf7+ {[%emt 0:00:00]} Kh8 {[%emt 0:00:00]} 45. d5 {[%emt 0:00:00]} Qf6 {[%emt 0:00:00]} 46. d6 {[%emt 0:00:00]} Qxf7 {[%emt 0:00:00]} 47. exf7 {[%emt 0:00:00]} Bxd6 {[%emt 0:00:00]} 48. Bf4 {[%emt 0:00:00]} 1-0

[Event "AICF Women GM 2018"]
[Site "Mumbai"]
[Date "2018.06.17"]
[Round "9"]
[White "Aakanksha Hagawane"]
[Black "Divya Deshmukh"]
[Result "1-0"]
[ECO "C02"]
[WhiteElo "2297"]
[BlackElo "2138"]
[Annotator "NA"]
[PlyCount "83"]
[EventDate "2018.??.??"]
[EventType "tourn"]
[EventCountry "IND"]
[SourceTitle "playchess.com"]
[Source "ChessBase"]
[SourceQuality "1"]
[TimeControl "40/5400+30:1800+30"]

{[%evp 11,73,0,12,17,25,-25,19,32767,-7,-3,32767,0,-18,-37,16,-19,-8,-12,0,-14,32767,115,74,73,77,9,104,92,245,280,283,334,32767,32767,32767,32767,32767,32767,32767,32767,32767,627,32767,179,32767,32767,32767,32767,32767,32767,32767,32767,32767,32767,32767,949,1055,32767,32767,32767,32767,6303,32767,29980]} 1. e4 {[%emt 0:00:00]} e6 {[%emt 0:00:04]} 2. d4 {[%emt 0:00:00]} d5 {[%emt 0:00:04]} 3. e5 {[%emt 0:00:00]} c5 {[%emt 0:00:03]} 4. c3 {[%emt 0:00:00]} Nc6 {[%emt 0:00:04]} 5. Nf3 {[%emt 0:00:07]} Bd7 {[%emt 0:00:02]} 6. a3 {[%emt 0:01:08]} f6 {[%emt 0:00:04]} 7. Bd3 {[%emt 0:01:21]} fxe5 {[%emt 0:00:15]} 8. dxe5 {[%emt 0:00:41] LiveBook: 24 Games} (8. Nxe5 $5 {[%cal Rd1h5]} Nf6 9. Nxd7 Qxd7 10. Be3 $11) 8... Qc7 {[%emt 0:00:13] C02: French: Advance Variation} 9. Bf4 {[%emt 0:02:32]} Nge7 {[%emt 0:02:32]} (9... O-O-O 10. Nbd2 h6 11. h4 Be8 12. h5 c4 13. Bc2 Qf7 14. Bg6 Qd7 15. Bxe8 Rxe8 16. b3 {1-0 (44) Penzold,A (2387)-Berger,S (2407) Germany 2016}) 10. O-O {[%emt 0:01:20]} g6 {[%emt 0:01:41]} 11. Re1 {[%emt 0:07:13]} Bg7 {[%emt 0:01:03]} 12. h4 $146 {[%emt 0:00:47]} ({Predecessor:} 12. Nbd2 Rf8 13. Bg3 Nf5 14. c4 d4 15. Bf4 Nh4 16. g3 Nxf3+ 17. Nxf3 {1-0 (24) Daoudi,K (2165)-Andersen,D (1884) Caleta 2012}) 12... O-O-O {[%emt 0:04:12]} 13. Nbd2 {[%emt 0:01:44]} Rdf8 {[%emt 0:03:23]} 14. Bh2 {[%emt 0:02:13]} c4 {[%emt 0:04:00]} 15. Bc2 {[%emt 0:01:54]} h6 {[%emt 0:00:40] [#]} 16. b3 $1 {[%emt 0:01:48]} cxb3 {[%emt 0:05:12]} 17. Nxb3 {[%emt 0:05:15]} g5 {[%emt 0:04:45]} 18. Nbd4 {[%emt 0:03:35]} (18. Nc5 $16) 18... g4 {[%emt 0:20:22] [#]} (18... Nxd4 $11 19. Nxd4 Kb8) 19. Nb5 $1 {[%emt 0:01:32]} Qb8 {[%emt 0:00:07]} (19... Qd8 $16 20. Nfd4 (20. Nd6+ Kb8 $14) 20... Nxd4 21. Nd6+ (21. Nxd4 h5 $11) (21. Nxa7+ Kb8 $15) 21... Kb8 22. Qxd4 h5) 20. Nd6+ {[%emt 0:02:18]} Kd8 {[%emt 0:05:39]} 21. Nd4 {[%emt 0:01:19]} h5 {[%emt 0:04:05]} 22. Rb1 {[%emt 0:15:23]} b6 {[%emt 0:00:33]} 23. Nxc6+ {[%emt 0:07:57]} Bxc6 {[%emt 0:07:30]} 24. c4 {[%emt 0:00:45]} Qa8 {[%emt 0:06:07]} 25. Qd4 {[%emt 0:05:04]} Nc8 {[%emt 0:05:40]} 26. cxd5 {[%emt 0:09:07]} Bxd5 {[%emt 0:00:10]} 27. Nxc8 {[%emt 0:00:12]} (27. Ba4 $142) 27... Qxc8 {[%emt 0:00:19]} 28. Bb3 {[%emt 0:00:06]} Ke7 {[%emt 0:06:55]} 29. Bxd5 {[%emt 0:03:01]} exd5 {[%emt 0:00:06]} 30. Qb4+ {[%emt 0:00:05]} Kf7 {[%emt 0:00:11]} 31. e6+ {[%emt 0:01:05]} Kg6 {[%emt 0:00:19]} 32. Rbc1 {[%emt 0:00:33]} Qe8 {[%emt 0:00:12]} 33. Rc7 {[%emt 0:02:15]} Rf5 {[%emt 0:01:43]} 34. Rxg7+ {[%emt 0:04:18]} Kxg7 {[%emt 0:00:04]} 35. Be5+ {[%emt 0:00:05]} Kg6 {[%emt 0:03:54]} 36. Bxh8 {[%emt 0:00:11]} Qxh8 {[%emt 0:00:03]} 37. e7 {[%emt 0:00:52]} Qe8 {[%emt 0:00:15]} 38. Qd6+ {[%emt 0:00:20]} Kg7 {[%emt 0:00:18]} 39. Qe6 {[%emt 0:00:29]} Rf7 {[%emt 0:02:02]} 40. Re5 {[%emt 0:00:08]} Rf4 {[%emt 0:31:17]} 41. Rg5+ {[%emt 0:30:30]} Kh7 {[%emt 0:00:07]} 42. Qe5 {[%emt 0:00:13]} 1-0

[Event "AICF Women GM 2018"]
[Site "Mumbai"]
[Date "2018.06.17"]
[Round "9"]
[White "Monnisha G K"]
[Black "Vo, Thi Kim Phung"]
[Result "1/2-1/2"]
[ECO "C11"]
[WhiteElo "2295"]
[BlackElo "2376"]
[Annotator "NA"]
[PlyCount "101"]
[EventDate "2018.??.??"]
[EventType "tourn"]
[EventCountry "IND"]
[SourceTitle "playchess.com"]
[Source "ChessBase"]
[SourceQuality "1"]
[TimeControl "40/5400+30:1800+30"]

1. e4 {[%emt 0:00:00]} e6 {[%emt 0:00:09]} 2. d4 {[%emt 0:00:00]} d5 {[%emt 0:00:06]} 3. Nc3 {[%emt 0:00:00]} Nf6 {[%emt 0:00:07]} 4. e5 {[%emt 0:00:00]} Nfd7 {[%emt 0:00:07]} 5. f4 {[%emt 0:00:00]} c5 {[%emt 0:00:11]} 6. Be3 {[%emt 0:00:32]} Nc6 {[%emt 0:00:18]} 7. Nf3 {[%emt 0:00:05]} Be7 {[%emt 0:00:29]} 8. Qd2 {[%emt 0:00:19]} b6 {[%emt 0:00:49] C11: French: Classical System: 4 e5 and 4 Bg5 dxe4} 9. Be2 {[%emt 0:01:34] LiveBook: 37 Games} (9. Bb5 Qc7 10. O-O-O a6 11. Bxc6 Qxc6 12. f5 c4 13. f6 gxf6 14. exf6 Bxf6 15. Rhf1 b5 16. Qf2 {1-0 (30) Caruana,F (2804)-Akobian,V (2647) Saint Louis 2018}) 9... Bb7 {[%emt 0:00:58]} 10. O-O {[%emt 0:00:09]} O-O {[%emt 0:00:23]} 11. Nd1 {[%emt 0:01:04]} cxd4 {[%emt 0:00:15]} 12. Nxd4 {[%emt 0:00:11]} Nc5 {[%emt 0:00:19]} 13. Nf2 {[%emt 0:01:54]} Ne4 {[%emt 0:02:23]} 14. Nxe4 {[%emt 0:02:01]} dxe4 {[%emt 0:00:07]} 15. Nxc6 $146 {[%emt 0:00:30]} ({Predecessor:} 15. Rad1 Nxd4 16. Bxd4 {½-½ (57) Abdumalik,Z (2449)-Vo,T (2380) Riadh 2017}) 15... Bxc6 {[%emt 0:00:07]} 16. Rfd1 {[%emt 0:00:42]} Qc8 {[%emt 0:01:03]} 17. Bc4 {[%emt 0:07:31]} Rd8 {[%emt 0:01:43]} 18. Qe2 {[%emt 0:00:17]} Qc7 {[%emt 0:01:19]} 19. Kf2 {[%emt 0:08:17]} g6 {[%emt 0:00:22]} (19... b5 $5 20. Bxb5 Bxb5 21. Qxb5 Qxc2+ 22. Qe2 Qc6 $11) 20. g3 {[%emt 0:00:55]} Bd5 {[%emt 0:00:28]} (20... b5 $15 21. Bb3 a5) 21. Bxd5 {[%emt 0:02:21]} exd5 {[%emt 0:00:28]} 22. Bd4 {[%emt 0:02:38]} Rac8 {[%emt 0:00:32]} 23. c3 {[%emt 0:00:32]} Qc6 {[%emt 0:00:48]} 24. Qa6 {[%emt 0:03:08]} Rd7 {[%emt 0:02:42]} 25. a4 {[%emt 0:03:31]} Rcc7 {[%emt 0:02:28]} 26. a5 {[%emt 0:03:20]} b5 {[%emt 0:01:50]} (26... Bc5 $11 {remains equal.}) 27. Qxc6 {[%emt 0:00:08]} Rxc6 {[%emt 0:00:05]} 28. a6 {[%emt 0:01:33]} Bd8 {[%emt 0:00:56]} 29. Rd2 {[%emt 0:03:04]} Kf8 {[%emt 0:00:30]} 30. g4 {[%emt 0:01:51]} f6 {[%emt 0:03:54]} 31. exf6 {[%emt 0:03:47]} Bxf6 {[%emt 0:00:03]} 32. Ra5 {[%emt 0:01:14]} Be7 {[%emt 0:10:29]} 33. Rxb5 {[%emt 0:01:01]} Rxa6 $16 {[%emt 0:00:06]} 34. Be5 {[%emt 0:01:24]} Rb6 {[%emt 0:00:41]} 35. Rxb6 {[%emt 0:07:48]} axb6 {[%emt 0:00:02]} 36. c4 {[%emt 0:00:25]} Bc5+ {[%emt 0:00:15]} 37. Bd4 {[%emt 0:00:29]} Bb4 {[%emt 0:01:22]} 38. Rc2 {[%emt 0:05:55]} Rc7 {[%emt 0:08:18]} 39. Bxb6 {[%emt 0:00:53]} Rxc4 {[%emt 0:00:48]} 40. Rxc4 {[%emt 0:00:26]} dxc4 {[%emt 0:30:02]} 41. Ke3 {[%emt 0:31:39]} c3 {[%emt 0:00:10]} 42. bxc3 {[%emt 0:00:07]} Bxc3 {[%emt 0:00:05]} 43. Kxe4 {[%emt 0:00:07]} Be1 {[%emt 0:01:54]} 44. Ke5 {[%emt 0:00:19]} Kf7 {[%emt 0:00:06]} 45. f5 {[%emt 0:00:31]} Bc3+ {[%emt 0:01:04]} 46. Bd4 {[%emt 0:00:48]} Ba5 {[%emt 0:00:20]} 47. h3 {[%emt 0:00:16]} Bc7+ {[%emt 0:01:08]} 48. Ke4 {[%emt 0:00:03]} Bd6 {[%emt 0:00:31]} 49. Be5 {[%emt 0:00:08]} Bb4 {[%emt 0:00:19]} 50. Kf4 {[%emt 0:00:11]} Bd2+ {[%emt 0:00:09]} 51. Ke4 {[%emt 0:00:05]} 1/2-1/2

[Event "AICF Women GM 2018"]
[Site "Mumbai"]
[Date "2018.06.17"]
[Round "9"]
[White "Vantika Agrawal"]
[Black "Tokhirjonova, Gulrukhbegim"]
[Result "1-0"]
[ECO "A06"]
[WhiteElo "2279"]
[BlackElo "2379"]
[Annotator "NA"]
[PlyCount "95"]
[EventDate "2018.??.??"]
[EventType "tourn"]
[EventCountry "IND"]
[SourceTitle "playchess.com"]
[Source "ChessBase"]
[SourceQuality "1"]
[TimeControl "40/5400+30:1800+30"]

1. Nf3 {[%emt 0:00:00]} d5 {[%emt 0:00:06]} 2. g3 {[%emt 0:00:00]} Bg4 {[%emt 0:00:22]} 3. Bg2 {[%emt 0:00:00]} c6 {[%emt 0:00:13]} 4. c4 {[%emt 0:00:01]} e6 {[%emt 0:00:45]} 5. O-O {[%emt 0:00:39]} Nd7 {[%emt 0:00:22]} 6. cxd5 {[%emt 0:00:43]} exd5 {[%emt 0:03:49]} 7. d3 {[%emt 0:00:33]} Ngf6 {[%emt 0:00:09]} 8. Nc3 {[%emt 0:00:48]} Be7 {[%emt 0:01:01]} 9. Qc2 {[%emt 0:03:34]} O-O {[%emt 0:03:24]} 10. e4 {[%emt 0:03:36]} Nc5 {[%emt 0:11:57] A11: Reti-Eröffnung} 11. h3 {[%emt 0:24:32]} (11. Ne5 Be6 12. Kh1 Nfd7 13. Nf3 Nb6 14. Rd1 Rc8 15. Nd4 Bg4 16. f3 Bd7 17. Be3 g6 18. Qf2 {½-½ (50) Rapport,R (2693)-Duda,J (2658) Reykjavik 2015}) 11... Bxf3 {[%emt 0:07:43]} 12. Bxf3 {[%emt 0:00:22]} dxe4 {[%emt 0:00:54]} 13. dxe4 {[%emt 0:01:07]} Qd3 {[%emt 0:01:44]} 14. Qxd3 {[%emt 0:06:27]} Nxd3 {[%emt 0:01:10] LiveBook: 4 Games} 15. Be3 {[%emt 0:17:46]} Nxb2 $146 {[%emt 0:05:20]} ({Vorgänger:} 15... Bc5 16. Rad1 Rfd8 17. Bxc5 Nxc5 18. Bg2 {1-0 (52) Dastan,B (2432)-Citak,S (2340) Kocaeli 2014}) 16. Rfb1 {[%emt 0:00:52]} Nc4 {[%emt 0:00:24]} 17. Rxb7 {[%emt 0:00:39]} Ba3 {[%emt 0:08:21]} 18. Bc1 {[%emt 0:07:23]} Bc5 {[%emt 0:01:44]} 19. Bf4 {[%emt 0:02:36]} Rfd8 {[%emt 0:05:52]} 20. Rc1 {[%emt 0:08:01]} Na5 {[%emt 0:07:57]} 21. Rbb1 {[%emt 0:00:38]} Ba3 {[%emt 0:09:36]} 22. Rd1 {[%emt 0:05:24]} h6 {[%emt 0:05:32]} 23. Rxd8+ {[%emt 0:12:26]} Rxd8 {[%emt 0:00:04]} 24. Be2 {[%emt 0:01:05]} Rd7 {[%emt 0:01:39]} 25. Rb8+ {[%emt 0:01:29]} Kh7 {[%emt 0:00:05]} 26. e5 {[%emt 0:00:25]} Ng8 {[%emt 0:02:06]} 27. Ne4 {[%emt 0:00:45]} Ne7 {[%emt 0:03:23]} 28. Nd6 {[%emt 0:01:20]} Ng6 {[%emt 0:05:04]} 29. Bd3 {[%emt 0:00:41]} f6 {[%emt 0:04:28]} 30. e6 {[%emt 0:00:26]} Rxd6 {[%emt 0:01:11]} 31. e7 {[%emt 0:00:28]} Rxd3 {[%emt 0:01:47]} 32. e8=Q {[%emt 0:00:10]} Rd1+ {[%emt 0:00:04]} 33. Kg2 {[%emt 0:00:17]} Nxf4+ {[%emt 0:00:08]} 34. gxf4 {[%emt 0:00:05]} Rd5 {[%emt 0:00:29]} 35. f5 {[%emt 0:00:42]} Rxf5 {[%emt 0:00:33]} 36. Qe4 {[%emt 0:00:04]} Kg6 {[%emt 0:00:04]} 37. h4 {[%emt 0:01:46]} h5 {[%emt 0:00:04]} 38. Rb1 {[%emt 0:00:33]} Bc5 {[%emt 0:00:37]} 39. f3 {[%emt 0:00:30]} Bb6 {[%emt 0:00:40]} 40. Rh1 {[%emt 0:00:33]} Nb7 {[%emt 0:32:09]} 41. Qe8+ {[%emt 0:02:53]} Kh6 $18 {[%emt 0:00:00]} 42. Qd7 {[%emt 0:00:36]} Rb5 {[%emt 0:00:00]} 43. Qxb7 {[%emt 0:00:42]} Rb2+ {[%emt 0:00:00]} 44. Kh3 {[%emt 0:00:36]} Rc2 {[%emt 0:00:00]} 45. Rh2 {[%emt 0:09:32]} Rc3 {[%emt 0:00:00]} 46. Rg2 {[%emt 0:06:03]} g5 {[%emt 0:00:00]} 47. hxg5+ {[%emt 0:00:13]} fxg5 {[%emt 0:00:00]} 48. Rxg5 {[%emt 0:00:25]} 1-0